bitfinex/quotes_SOLUSD_20251204
["timestamp","ask_amount","ask_price","bid_price","bid_amount"]
[1764812601950,6.8723799,145.51,145.49,0.66]
[1764812603944,26.59242758,145.51,145.47,0.66]
[1764812604349,27.18242758,145.51,145.47,0.66]
[1764812605051,24.64332966,145.51,145.47,0.66]
[1764812605246,2.53909792,145.5,145.47,0.66]
[1764812605547,7.62,145.49,145.45,0.66]
[1764812605747,7.62,145.49,145.46,0.66]
[1764812606329,6.87379708,145.48,145.46,0.66]
[1764812606646,2.53909792,145.47,145.43,0.66]
[1764812606839,7.62,145.46,145.43,0.66]
[1764812607745,6.87521485,145.45,145.43,0.66]
[1764812608946,6.87521485,145.45,145.4,1e-08]
[1764812609251,24.06325197,145.45,145.41,3.19909792]
[1764812609749,24.06325197,145.45,145.42,0.66]
[1764812610537,26.60234989,145.45,145.42,0.66]
[1764812610732,6.87434957,145.47,145.44,2.53909792]
[1764812610933,14.49434957,145.47,145.44,2.53909792]
[1764812611132,17.03344749,145.47,145.44,0.66]
[1764812611448,2.53909792,145.45,145.4,0.66000001]
[1764812611655,10.15909792,145.44,145.4,0.66000001]
[1764812611844,7.62,145.44,145.4,0.66000001]
[1764812612244,6.87616035,145.43,145.4,0.66000001]
[1764812613638,6.87616035,145.43,145.41,2.53909792]
[1764812613959,6.87616035,145.43,145.4,3.19909793]
[1764812614132,2.53909792,145.46,145.41,0.66]
[1764812614329,6.8743119,145.47,145.43,2.53909792]
[1764812614533,6.8743119,145.47,145.41,0.66]
[1764812614534,2.53909792,145.46,145.41,3.19909792]
[1764812614751,17.03340982,145.47,145.42,2.53909792]
[1764812614944,17.03340982,145.47,145.42,3.19909792]
[1764812615136,31.67998592,145.47,145.43,0.66]
[1764812615455,14.4943119,145.47,145.43,0.66]
[1764812615960,6.8743119,145.47,145.43,3.19909792]
[1764812616161,14.5143119,145.47,145.43,3.19909792]
[1764812616460,14.5143119,145.47,145.44,0.66]
[1764812619858,14.5143119,145.47,145.4,17.19394774]
[1764812619859,3.12909792,145.46,145.41,0.7]
[1764812620233,16.308864,145.44,145.4,1e-08]
[1764812620435,23.928864,145.44,145.41,0.7]
[1764812622655,30.80502149,145.44,145.41,0.7]
[1764812625459,33.34411941,145.44,145.4,1e-08]
[1764812625667,3.12909792,145.43,145.4,1e-08]
[1764812626547,6.8766332,145.42,145.4,1e-08]
[1764812626864,7.62,145.41,145.4,1e-08]
[1764812628068,6.8766332,145.42,145.4,1e-08]
[1764812628367,6.8742696,145.47,145.41,2.53909792]
[1764812628546,14.4942696,145.47,145.44,2.53909792]
[1764812628747,14.4942696,145.47,145.45,0.68]
[1764812628973,7.62,145.47,145.45,0.68]
[1764812631472,17.62376157,145.47,145.42,0.68]
[1764812631658,17.62376157,145.47,145.43,0.68]
[1764812631863,2.53909792,145.46,145.43,0.68]
[1764812633078,6.87521485,145.45,145.43,0.68]
[1764812633254,7.62,145.44,145.43,0.68]
[1764812635158,14.49568756,145.44,145.43,0.68]
[1764812635661,14.49568756,145.44,145.41,0.68]
[1764812636474,17.03478548,145.44,145.41,0.68]
[1764812637188,17.62478548,145.44,145.4,0.68000001]
[1764812637553,17.03478548,145.44,145.4,0.68000001]
[1764812638271,6.8766332,145.42,145.4,0.68000001]
[1764812638854,7.62,145.41,145.4,0.68000001]
[1764812639051,10.15909792,145.41,145.4,1e-08]
[1764812639251,7.62,145.41,145.4,1e-08]
[1764812639652,6.8766332,145.42,145.4,0.68000001]
[1764812639957,14.49633842,145.43,145.4,0.68000001]
[1764812640356,6.87633842,145.43,145.4,0.68000001]
[1764812640567,17.03543634,145.43,145.4,0.68000001]
[1764812640768,6.87633842,145.43,145.4,0.68000001]
[1764812641274,14.49633842,145.43,145.4,0.68000001]
[1764812642575,17.03543634,145.43,145.4,0.68000001]
[1764812642894,2.53909792,145.42,145.4,0.68000001]
[1764812643086,2.53909792,145.41,145.4,1e-08]
[1764812644450,24.0667393,145.43,145.4,0.68000001]
[1764812644663,7.62,145.42,145.4,0.68000001]
[1764812645276,10.15909792,145.42,145.4,0.68000001]
[1764812646479,9.41595032,145.42,145.4,1e-08]
[1764812646684,9.41595032,145.42,145.4,0.68000001]
[1764812646685,17.03595032,145.42,145.4,0.68000001]
[1764812647587,9.41595032,145.42,145.4,0.68000001]
[1764812647885,10.15909792,145.41,145.4,1e-08]
[1764812648458,7.62,145.41,145.4,1e-08]
[1764812649182,14.49710611,145.41,145.4,1e-08]
[1764812649675,6.87710611,145.41,145.4,1e-08]
[1764812649877,14.49710611,145.41,145.4,1e-08]
[1764812650081,6.87710611,145.41,145.4,1e-08]
[1764812650404,16.898864,145.44,145.4,3.21909793]
[1764812650405,6.87576771,145.44,145.4,3.21909793]
[1764812650590,6.87576771,145.44,145.41,2.53909792]
[1764812650754,6.87576771,145.44,145.42,0.68]
[1764812653384,0.59,145.5,145.43,2.53909792]
[1764812653556,10.15909792,145.49,145.44,2.53909792]
[1764812653871,7.62,145.48,145.44,9.41450036]
[1764812654055,10.15909792,145.48,145.45,0.69]
[1764812654266,3.12909792,145.47,145.41,3.22909792]
[1764812654692,3.12909792,145.47,145.42,0.69]
[1764812656294,9.41384011,145.46,145.42,0.69]
[1764812656480,7.62,145.45,145.42,0.69]
[1764812657490,18.466449,145.48,145.43,3.97265192]
[1764812657796,14.49379708,145.48,145.44,0.69]
[1764812657972,14.49379708,145.48,145.44,4.66265192]
[1764812658170,14.49379708,145.48,145.44,0.69]
[1764812658387,14.49379708,145.48,145.45,0.69]
[1764812662374,6.87379708,145.48,145.45,0.69]
[1764812662599,14.49340208,145.49,145.45,4.66265192]
[1764812662993,14.49340208,145.49,145.46,0.69]
[1764812663905,18.466054,145.49,145.46,0.69]
[1764812664208,19.056054,145.49,145.46,0.69]
[1764812664413,19.056054,145.49,145.45,0.69]
[1764812664779,3.97265192,145.48,145.45,0.69]
[1764812665191,3.97265192,145.48,145.43,3.97265192]
[1764812665192,6.8742696,145.47,145.43,4.66265192]
[1764812665518,7.62,145.46,145.42,4.66265192]
[1764812665678,7.62,145.46,145.43,0.69]
[1764812666586,6.87521485,145.45,145.43,0.69]
[1764812668881,6.87521485,145.45,145.43,4.66265192]
[1764812669298,6.87521485,145.45,145.44,0.69]
[1764812670209,6.87521485,145.45,145.43,3.97265192]
[1764812670509,6.87521485,145.45,145.44,0.69]
[1764812671209,6.87521485,145.45,145.43,0.69]
[1764812671385,6.87521485,145.45,145.44,0.69]
[1764812672601,6.87521485,145.45,145.43,0.69]
[1764812672806,6.87521485,145.45,145.44,0.69]
[1764812675293,17.18347651,145.49,145.44,4.66265192]
[1764812675596,7.62,145.48,145.44,4.66265192]
[1764812675804,7.62,145.48,145.45,0.69]
[1764812676807,28.61945305,145.49,145.45,0.69]
[1764812677010,7.62,145.48,145.45,0.69]
[1764812677805,28.61945305,145.49,145.45,0.69]
[1764812678014,7.62,145.48,145.45,0.69]
[1764812678525,28.02945305,145.49,145.45,0.69]
[1764812678697,7.62,145.48,145.45,0.69]
[1764812679308,14.49422557,145.48,145.45,0.69]
[1764812680120,6.87422557,145.48,145.45,0.69]
[1764812680441,6.87427827,145.47,145.45,0.69]
[1764812680795,14.49427827,145.47,145.45,0.69]
[1764812683616,14.49427827,145.47,145.44,3.97265192]
[1764812683806,14.49427827,145.47,145.43,3.97265192]
[1764812684007,14.49427827,145.47,145.45,0.71]
[1764812684210,6.87375886,145.49,145.45,4.68265192]
[1764812684518,6.87375886,145.49,145.46,4.68265192]
[1764812684519,14.49375886,145.49,145.46,4.68265192]
[1764812684714,14.49375886,145.49,145.46,0.71]
[1764812686422,6.87375886,145.49,145.46,0.71]
[1764812686622,14.49375886,145.49,145.46,0.71]
[1764812689006,17.18140006,145.51,145.46,11.55729629]
[1764812689310,7.62,145.5,145.47,3.97265192]
[1764812689498,7.62,145.5,145.47,4.68265192]
[1764812689699,7.62,145.5,145.48,0.71]
[1764812690524,6.87255539,145.51,145.48,4.68265192]
[1764812690727,14.49255539,145.51,145.48,0.71]
[1764812692411,35.64615707,145.51,145.47,0.71]
[1764812692619,36.23615707,145.51,145.47,0.71]
[1764812693428,35.64615707,145.51,145.47,0.71]
[1764812693625,4.56265192,145.5,145.45,3.97265192]
[1764812693831,7.62,145.49,145.47,0.71]
[1764812695014,15.08374672,145.49,145.45,0.71]
[1764812695214,15.08374672,145.49,145.46,0.71]
[1764812695521,14.49374672,145.49,145.46,0.71]
[1764812699520,0.59,145.48,145.44,0.71]
[1764812699714,7.46551763,145.48,145.44,0.71]
[1764812700334,6.87551763,145.48,145.44,0.71]
[1764812700635,14.4942696,145.47,145.44,0.71]
[1764812701137,0.59,145.46,145.42,0.71]
[1764812701331,7.62,145.45,145.42,0.71]
[1764812702715,14.49567957,145.45,145.42,0.71]
[1764812705044,7.62,145.45,145.42,0.71]
[1764812705253,7.62,145.47,145.43,3.97265192]
[1764812705540,7.62,145.47,145.42,11.55923195]
[1764812705744,14.81910092,145.48,145.42,11.55923195]
[1764812705745,3.97265192,145.48,145.43,0.71]
[1764812705938,16.308864,145.51,145.46,10.8471601]
[1764812705939,14.49275543,145.51,145.46,10.8471601]
[1764812706135,18.46540735,145.51,145.46,10.8471601]
[1764812706343,18.46540735,145.51,145.47,0.71]
[1764812706846,7.46275543,145.51,145.47,0.71]
[1764812707024,7.62,145.5,145.47,0.71]
[1764812707949,14.49285602,145.5,145.47,0.71]
[1764812708445,18.46550794,145.5,145.47,0.71]
[1764812709636,10.84550794,145.5,145.47,0.71]
[1764812709835,18.46550794,145.5,145.47,0.71]
[1764812711354,14.49285602,145.5,145.47,0.71]
[1764812714125,18.46550794,145.5,145.45,6.87505441]
[1764812714331,19.05550794,145.5,145.45,10.84770633]
[1764812714532,19.05550794,145.5,145.46,0.68]
[1764812714853,14.49285602,145.5,145.46,0.68]
[1764812718039,0.59,145.49,145.43,7.62]
[1764812718245,0.59,145.49,145.44,4.65265192]
[1764812718246,4.56265192,145.49,145.44,4.65265192]
[1764812718537,23.77348026,145.49,145.45,0.68]
[1764812719244,24.0549866,145.5,145.45,0.68]
[1764812719443,7.62,145.49,145.45,0.68]
[1764812720465,2.54151515,145.47,145.43,0.68]
[1764812720641,7.62,145.46,145.43,0.68]
[1764812722667,14.49511149,145.46,145.43,0.68]
[1764812723461,3.13151515,145.45,145.41,0.68]
[1764812723652,2.54151515,145.44,145.41,0.68]
[1764812724551,6.87616035,145.43,145.41,0.68]
[1764812724744,2.54151515,145.42,145.4,1e-08]
[1764812724948,3.13151515,145.42,145.4,1e-08]
[1764812725255,2.54151515,145.42,145.4,1e-08]
[1764812725562,2.54151515,145.42,145.4,0.68000001]
[1764812726638,9.41858251,145.42,145.4,0.68000001]
[1764812728536,3.13151515,145.41,145.4,1e-08]
[1764812728756,26.31748526,145.41,145.4,1e-08]
[1764812728963,41.01635557,145.41,145.4,1e-08]
[1764812730447,40.42635557,145.41,145.4,1e-08]
[1764812730648,41.01635557,145.41,145.4,1e-08]
[1764812730856,48.04635557,145.41,145.4,1e-08]
[1764812731165,40.22691914,145.41,145.4,1e-08]
[1764812732764,40.81691914,145.41,145.4,1e-08]
[1764812733365,40.22691914,145.41,145.4,1e-08]
[1764812734867,40.81691914,145.41,145.4,1e-08]
[1764812735357,37.68540399,145.41,145.4,1e-08]
[1764812735541,37.68540399,145.41,145.4,0.68000001]
[1764812735542,2.54151515,145.41,145.4,0.68000001]
[1764812736667,9.41862126,145.41,145.4,0.68000001]
[1764812736864,9.41862126,145.41,145.4,1e-08]
[1764812737466,6.87710611,145.41,145.4,0.68000001]
[1764812737668,9.41862126,145.41,145.4,0.68000001]
[1764812738450,9.41862126,145.41,145.4,1e-08]
[1764812744669,18.81856618,145.41,145.4,1e-08]
[1764812744977,25.89756013,145.41,145.4,1e-08]
[1764812747156,36.06362073,145.41,145.4,1e-08]
[1764812747356,16.308864,145.38,145.37,0.2]
[1764812747565,26.47037915,145.38,145.37,0.2]
[1764812747771,27.06037915,145.38,145.37,0.2]
[1764812747994,29.81510522,145.38,145.37,0.2]
[1764812749053,36.69363046,145.38,145.37,0.2]
[1764812749260,36.10363046,145.38,145.37,0.2]
[1764812750885,45.50357538,145.38,145.37,1e-08]
[1764812751061,97.09251471,145.38,145.33,0.2]
[1764812751260,2.54151515,145.34,145.33,0.2]
[1764812751476,10.16151515,145.34,145.33,0.2]
[1764812751870,12.9166207,145.34,145.33,0.2]
[1764812752258,13.5066207,145.34,145.33,0.2]
[1764812752454,13.5066207,145.34,145.29,1e-08]
[1764812752455,16.308864,145.3,145.29,1e-08]
[1764812752758,42.16263652,145.3,145.29,1e-08]
[1764812753082,29.07893621,145.3,145.29,1e-08]
[1764812753288,36.69893621,145.3,145.29,1e-08]
[1764812754092,28.48893621,145.3,145.29,1e-08]
[1764812754259,36.10893621,145.3,145.29,1e-08]
[1764812755366,36.69893621,145.3,145.29,1e-08]
[1764812757669,36.10893621,145.3,145.29,1e-08]
[1764812757863,36.10893621,145.3,145.29,0.66000001]
[1764812758081,36.10893621,145.3,145.29,1e-08]
[1764812758688,36.10893621,145.3,145.29,0.66000001]
[1764812758862,36.10893621,145.3,145.29,1e-08]
[1764812760673,33.3526916,145.3,145.29,1e-08]
[1764812761886,8.80994492,145.29,145.28,1e-08]
[1764812762094,11.94146007,145.29,145.28,1e-08]
[1764812762383,14.69827457,145.29,145.28,1e-08]
[1764812763367,21.58106072,145.29,145.28,1e-08]
[1764812764370,18.85037915,145.26,145.22,0.1]
[1764812764568,18.85037915,145.23,145.22,0.1]
[1764812764766,26.47037915,145.23,145.22,0.1]
[1764812765473,9.39994492,145.25,145.22,0.1]
[1764812765474,16.308864,145.26,145.22,0.76]
[1764812765785,7.62,145.25,145.22,0.76]
[1764812765983,16.308864,145.26,145.22,0.76]
[1764812766173,7.62,145.25,145.22,0.76]
[1764812767183,10.16151515,145.25,145.22,0.76]
[1764812767487,6.8851556,145.24,145.22,0.76]
[1764812767991,14.5051556,145.24,145.22,0.1]
[1764812768190,2.54151515,145.23,145.22,0.1]
[1764812768393,3.13151515,145.23,145.22,0.1]
[1764812769580,10.01714484,145.23,145.22,0.1]
[1764812770274,16.308864,145.2,145.18,0.66]
[1764812770472,10.16151515,145.19,145.11,17.22798641]
[1764812770692,10.16151515,145.19,145.17,0.66]
[1764812771194,10.16151515,145.19,145.1,8.80994492]
[1764812771195,2.54151515,145.18,145.15,0.66]
[1764812771392,2.54151515,145.16,145.1,3.20151515]
[1764812771575,6.8898994,145.14,145.1,3.20151515]
[1764812771776,6.8898994,145.14,145.11,0.66]
[1764812773197,2.54151515,145.13,145.11,0.66]
[1764812773393,16.308864,145.1,145.09,3.15084437]
[1764812773580,2.54151515,145.1,145.09,3.15084437]
[1764812773786,3.13151515,145.1,145.09,3.15084437]
[1764812773981,11.94146007,145.1,145.09,3.15084437]
[1764812774272,16.308864,145.06,145.05,0.67]
[1764812774496,26.47037915,145.06,145.03,0.67]
[1764812774994,6.89179875,145.1,145.03,0.67]
[1764812775198,2.54151515,145.05,145.03,0.67]
[1764812775993,26.47037915,145.06,145.03,0.67]
[1764812776507,30.77791841,145.06,145.03,0.67]
[1764812777008,23.928864,145.06,145.03,0.67]
[1764812777502,37.6716298,145.06,145.03,0.67]
[1764812777892,6.84905441,145.05,145.03,0.67]
[1764812778503,6.84905441,145.05,145.02,0.1]
[1764812778702,23.15791841,145.03,145.02,0.1]
[1764812778914,30.77791841,145.03,145.02,0.1]
[1764812779396,38.26304355,145.03,145.02,0.1]
[1764812779586,31.41398914,145.03,145.02,0.1]
[1764812779782,38.26304355,145.03,145.02,0.1]
[1764812779988,16.308864,145.03,145.02,0.1]
[1764812780291,16.308864,145.03,145.02,0.77]
[1764812780292,23.928864,145.03,145.02,0.77]
[1764812780489,6.89427776,145.05,145.02,0.77]
[1764812780689,7.62,145.05,145.02,7.66538701]
[1764812780892,17.49529941,145.07,145.02,7.66538701]
[1764812780893,33.80416341,145.07,145.02,18.26746246]
[1764812781087,7.62,145.07,145.04,10.60207545]
[1764812781317,7.62,145.07,145.05,0.67]
[1764812781606,7.62,145.07,145.05,7.56395055]
[1764812782004,7.62,145.07,145.06,0.67]
[1764812782396,17.22497686,145.14,145.06,11.27207545]
[1764812782714,49.61827664,145.16,145.11,10.60207545]
[1764812782891,7.62,145.15,145.11,10.60207545]
[1764812783217,7.62,145.15,145.13,10.60207545]
[1764812783706,7.64,145.16,145.13,0.67]
[1764812784089,14.52847558,145.17,145.13,11.27207545]
[1764812784403,42.35173998,145.17,145.13,0.67]
[1764812784607,16.308864,145.14,145.1,0.67]
[1764812784807,23.948864,145.14,145.1,11.27207545]
[1764812785011,23.948864,145.14,145.1,0.67]
[1764812785216,23.948864,145.14,145.1,10.60207545]
[1764812785404,30.83903383,145.14,145.11,0.67]
[1764812786203,10.60207545,145.12,145.08,0.67]
[1764812786414,0.59,145.13,145.06,0.67]
[1764812786415,18.22207545,145.11,145.06,0.67]
[1764812786583,10.60207545,145.1,145.06,0.67]
[1764812786996,26.91093945,145.1,145.06,0.67]
[1764812787193,10.60207545,145.09,145.06,0.67]
[1764812787394,14.51274882,145.08,145.06,0.67]
[1764812788196,7.62,145.08,145.07,10.60207545]
[1764812788399,30.84075812,145.1,145.06,11.27207545]
[1764812788824,30.84075812,145.1,145.07,0.67]
[1764812789527,30.84075812,145.1,145.07,0.17]
[1764812789824,30.84075812,145.1,145.03,17.23665866]
[1764812789825,41.44283357,145.1,145.04,6.89452958]
[1764812789988,58.67233046,145.1,145.04,10.60207545]
[1764812790313,48.07025501,145.1,145.05,10.60207545]
[1764812790816,59.34233046,145.1,145.03,6.89506681]
[1764812790992,59.34233046,145.1,145.05,10.60207545]
[1764812791193,59.34233046,145.1,145.04,10.60207545]
[1764812791602,59.34233046,145.1,145.05,0.67]
[1764812791990,59.34233046,145.1,145.05,11.27207545]
[1764812792193,48.07025501,145.1,145.06,10.60207545]
[1764812792420,59.34233046,145.1,145.06,0.67]
[1764812792608,58.67233046,145.1,145.06,0.67]
[1764812792903,48.07025501,145.1,145.06,0.67]
[1764812794515,7.64,145.09,145.06,0.67]
[1764812795797,14.53269893,145.09,145.06,0.67]
[1764812798807,0.67,145.08,145.04,10.60207545]
[1764812798996,43.03545878,145.09,145.05,0.67]
[1764812800220,32.43338333,145.09,145.05,0.67]
[1764812801215,32.43338333,145.09,145.05,11.27207545]
[1764812801216,6.89269893,145.09,145.05,11.27207545]
[1764812801414,6.89269893,145.09,145.05,0.67]
[1764812801606,6.89269893,145.09,145.06,11.29207545]
[1764812801806,6.89269893,145.09,145.06,0.69]
[1764812802722,24.80338333,145.09,145.04,10.60207545]
[1764812802910,24.12338333,145.09,145.05,0.72]
[1764812803229,24.12338333,145.09,145.05,11.32207545]
[1764812803612,24.12338333,145.09,145.06,0.72]
[1764812804322,30.84075613,145.1,145.07,10.60207545]
[1764812804532,23.20075613,145.1,145.07,10.60207545]
[1764812804726,6.89189213,145.1,145.08,0.72]
[1764812805311,6.89189213,145.1,145.06,10.60207545]
[1764812805312,7.57189213,145.1,145.06,10.60207545]
[1764812805536,8.32,145.09,145.04,11.32207545]
[1764812805825,8.32,145.09,145.04,10.60207545]
[1764812806128,8.32,145.09,145.05,0.72]
[1764812806303,7.64,145.09,145.05,11.32207545]
[1764812806506,7.64,145.09,145.05,0.72]
[1764812806829,6.89274882,145.08,145.05,11.32207545]
[1764812807324,6.89274882,145.08,145.03,6.89502065]
[1764812807530,6.89274882,145.08,145.05,0.72]
[1764812809819,7.64,145.09,145.05,0.72]
[1764812810127,14.53237352,145.09,145.06,10.60207545]
[1764812810525,14.53237352,145.09,145.05,0.72]
[1764812810716,25.81444897,145.09,145.05,0.72]
[1764812811609,11.28207545,145.08,145.03,0.72]
[1764812812007,0.68,145.07,145.03,0.72]
[1764812812225,7.64,145.06,145.02,0.82]
[1764812813226,6.89417442,145.05,145.02,0.82]
[1764812816438,24.80961047,145.05,145.02,0.1]
[1764812816635,0.68,145.04,145.02,0.1]
[1764812816813,7.64,145.03,145.02,0.1]
[1764812817212,14.53512514,145.03,145.02,0.1]
[1764812817816,15.21512514,145.03,145.02,0.1]
[1764812818440,25.81720059,145.03,145.02,0.1]
[1764812819511,34.62714551,145.03,145.02,0.1]
[1764812819911,34.62714551,145.03,145.02,1e-08]
[1764812820111,34.62714551,145.03,144.91,10.60207545]
[1764812820112,25.11880892,144.99,144.91,10.60207545]
[1764812820316,10.60207545,144.95,144.91,0.72]
[1764812820521,10.60207545,144.93,144.9,0.1]
[1764812820729,8.80994492,144.97,144.9,0.1]
[1764812820730,26.91093945,144.91,144.9,0.1]
[1764812820936,43.36088437,144.91,144.9,0.1]
[1764812821236,23.20854943,144.94,144.9,0.82]
[1764812821413,23.20854943,144.94,144.9,11.42207545]
[1764812821606,23.20854943,144.94,144.9,0.82]
[1764812821819,33.81062488,144.94,144.91,0.72]
[1764812822016,0.68,144.93,144.9,0.1]
[1764812822341,18.24207545,144.92,144.9,0.1]
[1764812822727,0.68,144.91,144.9,0.1]
[1764812822927,8.32,144.91,144.9,0.1]
[1764812823129,18.92207545,144.91,144.9,0.1]
[1764812823318,34.63285537,144.91,144.9,1e-08]
[1764812825222,34.63285537,144.91,144.88,0.1]
[1764812825223,24.99999999,144.9,144.88,0.1]
[1764812825418,27.59093945,144.89,144.88,0.1]
[1764812825742,36.40088437,144.89,144.88,0.1]
[1764812825940,20.09202037,144.89,144.88,1e-08]
[1764812826448,8.80994492,144.84,144.78,0.72]
[1764812826744,6.9051236,144.82,144.78,0.72]
[1764812827135,41.1567966,144.82,144.78,0.72]
[1764812827340,11.28207545,144.81,144.76,11.32207545]
[1764812827535,40.4767966,144.82,144.74,11.32207545]
[1764812827536,18.92207545,144.8,144.74,11.32207545]
[1764812827842,23.948864,144.79,144.75,11.32207545]
[1764812828054,7.64,144.78,144.75,0.72]
[1764812828225,7.64,144.78,144.73,10.10526407]
[1764812828226,16.308864,144.79,144.73,3.91621746]
[1764812828417,10.60207545,144.77,144.73,3.91621746]
[1764812828618,7.64,144.78,144.74,10.60207545]
[1764812828932,7.64,144.8,144.77,10.60207545]
[1764812829329,6.9051236,144.82,144.79,10.60207545]
[1764812829530,11.28207545,144.81,144.74,6.90884302]
[1764812829745,25.82719905,144.82,144.76,11.32207545]
[1764812830117,25.82719905,144.82,144.76,10.60207545]
[1764812830421,25.82719905,144.82,144.76,11.32207545]
[1764812830422,0.68,144.81,144.76,11.32207545]
[1764812830644,11.28207545,144.81,144.76,11.32207545]
[1764812830834,6.90607734,144.8,144.76,11.32207545]
[1764812831145,7.66,144.79,144.76,0.72]
[1764812831524,0.68,144.78,144.74,10.60207545]
[1764812831846,24.17127071,144.8,144.73,3.19621746]
[1764812832032,7.66,144.79,144.74,11.32207545]
[1764812832235,6.90607734,144.8,144.76,10.60207545]
[1764812832419,0.65,144.79,144.73,3.19621746]
[1764812832845,14.56735075,144.78,144.74,11.29207545]
[1764812833052,6.90735075,144.78,144.74,11.29207545]
[1764812833257,6.90735075,144.78,144.75,11.29207545]
[1764812833551,6.90735075,144.78,144.75,0.69]
[1764812833720,17.5094262,144.78,144.75,0.69]
[1764812833924,6.90735075,144.78,144.75,0.69]
[1764812834754,6.90735075,144.78,144.75,11.29207545]
[1764812835050,6.90735075,144.78,144.73,3.88621746]
[1764812835254,17.5094262,144.78,144.74,0.69]
[1764812835454,11.25207545,144.77,144.73,3.19621746]
[1764812835651,16.308864,144.74,144.73,3.19621746]
[1764812837157,23.21780416,144.74,144.73,3.19621746]
[1764812837362,34.46987961,144.74,144.73,3.19621746]
[1764812838156,34.46987961,144.74,144.65,17.28221735]
[1764812838157,8.80994492,144.73,144.66,0.69]
[1764812838365,10.60207545,144.69,144.64,11.29207545]
[1764812838664,7.66,144.69,144.64,0.69]
[1764812838877,10.60207545,144.67,144.64,0.69]
[1764812839065,14.59276095,144.66,144.62,0.69]
[1764812839545,25.8448364,144.66,144.62,0.69]
[1764812839852,43.12673879,144.66,144.6,11.39207545]
[1764812840048,7.68,144.65,144.62,10.60207545]
[1764812840250,7.68,144.66,144.62,10.60207545]
[1764812840567,15.21616807,144.66,144.6,0.79]
[1764812840728,15.21616807,144.66,144.6,0.1]
[1764812840729,6.88616807,144.64,144.6,0.1]
[1764812841062,7.68,144.64,144.62,6.88616807]
[1764812841262,7.68,144.67,144.6,7.70552244]
[1764812841438,7.68,144.67,144.63,6.88616807]
[1764812841966,7.68,144.67,144.64,7.57616807]
[1764812842175,24.19140638,144.68,144.64,0.69]
[1764812842486,24.19140638,144.68,144.62,0.69]
[1764812842487,14.56616807,144.67,144.62,0.69]
[1764812842772,15.21616807,144.67,144.62,7.57616807]
[1764812842950,7.56276095,144.66,144.62,7.57616807]
[1764812843150,6.91276095,144.66,144.62,7.57616807]
[1764812843370,6.91276095,144.66,144.63,0.69]
[1764812843667,32.52466334,144.66,144.62,7.57616807]
[1764812843847,7.53616807,144.65,144.6,0.1]
[1764812844055,0.65,144.64,144.6,0.1]
[1764812844368,7.68,144.63,144.61,6.88616807]
[1764812844557,24.19466334,144.66,144.6,0.79]
[1764812844558,7.68,144.64,144.6,0.79]
[1764812844753,7.68,144.64,144.61,6.88616807]
[1764812845056,6.91419484,144.63,144.6,7.67616807]
[1764812845274,6.91419484,144.63,144.6,0.79]
[1764812845448,6.91419484,144.63,144.61,0.69]
[1764812845773,14.59386102,144.64,144.61,0.69]
[1764812846355,7.68,144.64,144.61,7.57616807]
[1764812846566,7.68,144.64,144.61,0.69]
[1764812846877,7.68,144.64,144.62,0.69]
[1764812847450,75.81068226,144.71,144.62,0.69]
[1764812847451,21.41196408,144.71,144.63,6.88616807]
[1764812847662,7.68,144.7,144.66,6.88616807]
[1764812847977,14.59051665,144.71,144.67,6.88616807]
[1764812848177,14.59051665,144.71,144.66,6.88616807]
[1764812848381,6.90969464,144.73,144.67,6.88616807]
[1764812848581,14.58969464,144.73,144.69,6.88616807]
[1764812848752,7.68,144.73,144.69,6.88616807]
[1764812848949,7.68,144.73,144.7,0.69]
[1764812849154,23.2179473,144.74,144.7,0.69]
[1764812849368,30.8979473,144.74,144.7,7.57616807]
[1764812849675,14.5890833,144.74,144.7,7.57616807]
[1764812850073,15.2390833,144.74,144.7,6.88616807]
[1764812851173,7.68,144.74,144.71,7.57616807]
[1764812851778,7.68,144.74,144.68,0.69]